fUSD/lending_fUSD_20241223
["ID","MTS","AMOUNT","RATE_DAILY","PERIOD"]
[346440498,1734977456107,-504.09,0.0001773,2]
[346440499,1734977456117,-500.0,0.0001773,2]
[346440500,1734977456126,-577.33,0.0001773,2]
[346440501,1734977456136,-500.0,0.0001773,2]
[346440502,1734977456148,-1442.04,0.00017733,2]
[346440503,1734977456158,-173.59306876,0.00017785,2]
[346440504,1734977456167,-5556.72937356,0.00017793,2]
[346440505,1734977456177,-3865.219003,0.000178,2]
[346440506,1734977456186,-187.55957651,0.000178,2]
[346440507,1734977456211,-4221.5,0.00017801,2]
[346440508,1734977456221,-2962.35,0.00017801,2]
[346440509,1734977456230,-2479.46,0.00017801,2]
[346440510,1734977456239,-1312.14,0.00017801,2]
[346440511,1734977456248,-4948.18,0.00017801,2]
[346440512,1734977456257,-6291.6,0.00017801,2]
[346440513,1734977456266,-567.51,0.00017801,2]
[346440514,1734977456275,-1862.39,0.00017801,2]
[346440515,1734977456284,-8069.5,0.00017801,2]
[346440516,1734977456293,-25346.78,0.00017801,2]
[346440517,1734977456303,-3930.45,0.00017801,2]
[346440518,1734977456313,-6155.99,0.00017801,2]
[346440519,1734977456322,-4972.36,0.00017801,2]
[346440520,1734977456332,-9561.24,0.00017801,2]
[346440521,1734977456341,-7845.9,0.00017801,2]
[346440522,1734977456351,-5425.77,0.00017801,2]
[346440523,1734977456360,-3787.73,0.00017801,2]
[346440524,1734977456370,-1426.97,0.00017801,2]
[346440525,1734977456379,-8420.39,0.00017801,2]
[346440526,1734977456388,-3207.8,0.00017801,2]
[346440527,1734977456399,-24863.1,0.00017801,2]
[346440528,1734977456408,-2895.28,0.00017801,2]
[346440529,1734977456418,-500.0,0.00017801,2]
[346440530,1734977456427,-3164.39,0.00017801,2]
[346440531,1734977456436,-1104.36,0.00017801,2]
[346440532,1734977456445,-5915.52,0.00017801,2]
[346440533,1734977456455,-544.5,0.00017802,2]
[346440534,1734977456467,-1206.53,0.00017802,2]
[346440535,1734977456476,-500.0,0.00017802,2]
[346440536,1734977456485,-500.0,0.00017802,2]
[346440537,1734977456498,-500.0,0.00017802,2]
[346440538,1734977456507,-960.13,0.00017802,2]
[346440539,1734977456515,-500.0,0.00017802,2]
[346440540,1734977456524,-324.48090025,0.00017802,2]
[346440541,1734977456533,-500.0,0.00017802,2]
[346440542,1734977456542,-550.31,0.00017802,2]
[346440543,1734977456552,-688.25,0.00017802,2]
[346440544,1734977456561,-516.32,0.00017802,2]
[346440545,1734977456570,-1344.26,0.00017802,2]
[346440546,1734977456579,-671.35,0.00017802,2]
[346440547,1734977456588,-916.0,0.00017802,2]
[346440548,1734977456597,-510.34,0.00017802,2]
[346440549,1734977456607,-500.0,0.00017802,2]
[346440550,1734977456616,-500.0,0.00017802,2]
[346440551,1734977456625,-500.0,0.00017802,2]
[346440552,1734977456634,-2081.19,0.00017802,2]
[346440553,1734977456643,-500.0,0.00017802,2]
[346440554,1734977456654,-500.0,0.00017802,2]
[346440555,1734977456663,-1124.19,0.00017802,2]
[346440556,1734977456673,-727.68,0.00017802,2]
[346440557,1734977456682,-1075.04,0.00017802,2]
[346440558,1734977456691,-500.0,0.00017802,2]
[346440559,1734977456701,-500.0,0.00017802,2]
[346440560,1734977456710,-693.52,0.00017802,2]
[346440561,1734977456720,-500.0,0.00017802,2]
[346440562,1734977456729,-1430.71,0.00017802,2]
[346440563,1734977456739,-500.0,0.00017802,2]
[346440564,1734977456748,-500.0,0.00017802,2]
[346440565,1734977456757,-1370.06,0.00017802,2]
[346440566,1734977456767,-2445.7,0.00017802,2]
[346440567,1734977456776,-500.0,0.00017802,2]
[346440568,1734977456784,-500.0,0.00017802,2]
[346440569,1734977456793,-2197.08,0.00017802,2]
[346440570,1734977456803,-926.71,0.00017802,2]
[346440571,1734977456811,-500.0,0.00017802,2]
[346440572,1734977456820,-500.0,0.00017802,2]
[346440573,1734977456830,-500.0,0.00017802,2]
[346440574,1734977456839,-2529.93,0.00017802,2]
[346440575,1734977456848,-346.25622743,0.00017802,2]
[346440576,1734977456857,-500.0,0.00017802,2]
[346440577,1734977456866,-702.39,0.00017802,2]
[346440578,1734977456875,-1110.16,0.00017802,2]
[346440579,1734977456884,-500.0,0.00017802,2]
[346440580,1734977456893,-756.96,0.00017802,2]
[346440581,1734977456906,-500.0,0.00017802,2]
[346440582,1734977456915,-1635.62,0.00017802,2]
[346440583,1734977456925,-350.66665043,0.00017802,2]
[346440584,1734977456933,-500.0,0.00017802,2]
[346440585,1734977456943,-1182.7,0.00017802,2]
[346440586,1734977456954,-2240.44,0.00017802,2]
[346440587,1734977456964,-1339.86,0.00017802,2]
[346440588,1734977456972,-500.0,0.00017802,2]
[346440589,1734977456981,-500.0,0.00017802,2]
[346440590,1734977456990,-1193.2,0.00017802,2]
[346440591,1734977456999,-500.0,0.00017802,2]
[346440592,1734977457008,-1241.02,0.00017802,2]
[346440593,1734977457017,-1093.24,0.00017802,2]
[346440594,1734977457026,-652.39,0.00017802,2]
[346440595,1734977457035,-500.0,0.00017802,2]
[346440596,1734977457044,-500.0,0.00017802,2]
[346440597,1734977457053,-1295.73,0.00017802,2]
[346440598,1734977457062,-721.03,0.00017802,2]
[346440599,1734977457071,-719.15,0.00017802,2]
[346440600,1734977457079,-500.0,0.00017802,2]
[346440601,1734977457088,-500.0,0.00017802,2]
[346440602,1734977457098,-500.0,0.00017802,2]
[346440603,1734977457107,-709.5,0.00017802,2]
[346440604,1734977457116,-500.0,0.00017802,2]
[346440605,1734977457125,-500.0,0.00017802,2]
[346440606,1734977457134,-500.0,0.00017802,2]
[346440607,1734977457143,-500.0,0.00017802,2]
[346440608,1734977457156,-500.0,0.00017802,2]
[346440609,1734977457165,-989.39,0.00017802,2]
[346440610,1734977457175,-704.84,0.00017802,2]
[346440611,1734977457184,-1079.16,0.00017802,2]
[346440612,1734977457193,-519.67,0.00017802,2]
[346440613,1734977457202,-500.0,0.00017802,2]
[346440614,1734977457211,-658.29,0.00017802,2]
[346440615,1734977457220,-602.82,0.00017802,2]
[346440616,1734977457229,-1232.96,0.00017802,2]
[346440617,1734977457238,-555.27,0.00017802,2]
[346440618,1734977457247,-563.59,0.00017802,2]
[346440619,1734977457256,-500.0,0.00017802,2]
[346440620,1734977457265,-500.0,0.00017802,2]
[346440621,1734977457274,-500.0,0.00017802,2]
[346440622,1734977457284,-3140.296248,0.00017802,2]
[346440623,1734977457292,-154.072404,0.00017802,2]
[346440624,1734977457301,-500.0,0.00017802,2]
[346440625,1734977457310,-3682.935488,0.00017802,2]
[346440626,1734977457319,-500.0,0.00017802,2]
[346440627,1734977457328,-500.0,0.00017802,2]
[346440628,1734977457337,-2607.69,0.00017802,2]
[346440629,1734977457346,-672.78,0.00017802,2]
[346440630,1734977457355,-500.0,0.00017802,2]
[346440631,1734977457364,-500.0,0.00017802,2]
[346440632,1734977457372,-500.0,0.00017802,2]
[346440633,1734977457382,-500.0,0.00017802,2]
[346440634,1734977457390,-769.37,0.00017802,2]
[346440635,1734977457402,-960.87,0.00017802,2]
[346440636,1734977457411,-2112.24,0.00017802,2]
[346440637,1734977457420,-2393.81,0.00017802,2]
[346440638,1734977457429,-500.0,0.00017802,2]
[346440639,1734977457438,-1014.82,0.00017802,2]
[346440640,1734977457447,-336.89831707,0.00017802,2]
[346440641,1734977457457,-594.45,0.00017802,2]
[346440642,1734977457471,-1419.02,0.00017802,2]
[346440643,1734977457479,-500.0,0.00017802,2]
[346440644,1734977457489,-1419.08,0.00017802,2]
[346440645,1734977457498,-500.0,0.00017802,2]
[346440646,1734977457509,-2167.38,0.00017802,2]
[346440647,1734977457518,-516.99828635,0.00017802,2]
[346440648,1734977457527,-801.81,0.00017802,2]
[346440649,1734977457537,-894.04,0.00017802,2]
[346440650,1734977457546,-645.57,0.00017802,2]
[346440651,1734977457555,-500.0,0.00017802,2]
[346440652,1734977457564,-452.28801661,0.00017802,2]
[346440653,1734977457573,-572.16,0.00017802,2]
[346440654,1734977457582,-643.08,0.00017802,2]
[346440655,1734977457591,-579.87,0.00017802,2]
[346440656,1734977457601,-500.0,0.00017802,2]
[346440657,1734977457609,-500.0,0.00017802,2]
[346440658,1734977457618,-1068.99,0.00017802,2]
[346440659,1734977457627,-500.0,0.00017802,2]
[346440660,1734977457637,-625.16,0.00017802,2]
[346440661,1734977457647,-1121.95,0.00017802,2]
[346440662,1734977457656,-748.78,0.00017802,2]
[346440663,1734977457665,-713.97,0.00017802,2]
[346440664,1734977457674,-500.0,0.00017802,2]
[346440665,1734977457683,-549.1,0.00017802,2]
[346440666,1734977457691,-500.0,0.00017802,2]
[346440667,1734977457700,-500.0,0.00017802,2]
[346440668,1734977457709,-522.13,0.00017802,2]
[346440669,1734977457718,-500.0,0.00017802,2]
[346440670,1734977457727,-917.34,0.00017802,2]
[346440671,1734977457736,-564.32670067,0.00017802,2]
[346440672,1734977457745,-785.03,0.00017802,2]
[346440673,1734977457754,-500.0,0.00017802,2]
[346440674,1734977457764,-1517.3,0.00017802,2]
[346440675,1734977457773,-200.0,0.00017802,2]
[346440676,1734977457781,-552.09,0.00017802,2]
[346440677,1734977457790,-706.35,0.00017802,2]
[346440678,1734977457800,-625.49,0.00017802,2]
[346440679,1734977457809,-739.73,0.00017802,2]
[346440680,1734977457818,-861.58,0.00017802,2]
[346440681,1734977457826,-1490.89,0.00017802,2]
[346440682,1734977457836,-1403.17,0.00017802,2]
[346440683,1734977457845,-589.47,0.00017802,2]
[346440684,1734977457854,-508.56468473,0.00017802,2]
[346440685,1734977457863,-2140.16,0.00017802,2]
[346440686,1734977457872,-500.0,0.00017802,2]
[346440687,1734977457881,-500.0,0.00017802,2]
[346440688,1734977457890,-551.41,0.00017802,2]
[346440689,1734977457901,-1363.82,0.00017802,2]
[346440690,1734977457910,-1664.37,0.00017802,2]
[346440691,1734977457919,-969.86,0.00017802,2]
[346440692,1734977457928,-500.0,0.00017802,2]
[346440693,1734977457937,-1789.77,0.00017802,2]
[346440694,1734977457946,-1244.19,0.00017802,2]
[346440695,1734977457956,-500.0,0.00017802,2]
[346440696,1734977457966,-500.0,0.00017802,2]
[346440697,1734977457975,-500.0,0.00017802,2]
[346440698,1734977457984,-1475.87,0.00017802,2]
[346440699,1734977457993,-2247.13,0.00017802,2]
[346440700,1734977458002,-624.53,0.00017802,2]
[346440701,1734977458011,-500.0,0.00017802,2]
[346440702,1734977458019,-500.0,0.00017802,2]
[346440703,1734977458028,-1082.57,0.00017802,2]
[346440704,1734977458037,-500.0,0.00017802,2]
[346440705,1734977458046,-1186.82,0.00017802,2]
[346440706,1734977458055,-1277.1,0.00017802,2]
[346440707,1734977458063,-1141.59,0.00017802,2]
[346440708,1734977458072,-2346.74,0.00017802,2]
[346440709,1734977458081,-3276.11,0.00017802,2]
[346440710,1734977458090,-500.0,0.00017802,2]
[346440711,1734977458099,-13372.21,0.00017802,2]
[346440712,1734977458108,-500.0,0.00017802,2]
[346440713,1734977458116,-500.0,0.00017802,2]
[346440714,1734977458125,-4163.66,0.00017802,2]
[346440715,1734977458134,-3360.61,0.00017802,2]
[346440716,1734977458144,-758.01,0.00017802,2]
[346440717,1734977458155,-584.7,0.00017802,2]
[346440718,1734977458164,-3478.58,0.00017802,2]
[346440719,1734977458174,-1216.02,0.00017802,2]
[346440720,1734977458183,-608.25,0.00017802,2]
[346440721,1734977458192,-861.45,0.00017802,2]
[346440722,1734977458201,-1445.85,0.00017802,2]
[346440723,1734977458210,-560.75,0.00017802,2]
[346440724,1734977458219,-572.18,0.00017802,2]
[346440725,1734977458228,-543.34195677,0.00017802,2]
[346440726,1734977458237,-1596.13,0.00017802,2]
[346440727,1734977458246,-2322.96,0.00017802,2]
[346440728,1734977458255,-4292.59,0.00017802,2]
[346440729,1734977458264,-500.0,0.00017802,2]
[346440730,1734977458273,-876.25,0.00017802,2]
[346440731,1734977458282,-6853.72,0.00017802,2]
[346440732,1734977458291,-608.36,0.00017802,2]
[346440733,1734977458300,-500.0,0.00017802,2]
[346440734,1734977458309,-906.5,0.00017802,2]
[346440735,1734977458318,-5880.72,0.00017802,2]
[346440736,1734977458327,-805.83,0.00017802,2]
[346440737,1734977458336,-888.62,0.00017802,2]
[346440738,1734977458345,-4265.68,0.00017802,2]
[346440739,1734977458353,-500.0,0.00017802,2]
[346440740,1734977458362,-500.0,0.00017802,2]
[346440741,1734977458371,-500.0,0.00017802,2]
[346440742,1734977458380,-1265.92,0.00017802,2]
[346440743,1734977458389,-869.65,0.00017802,2]
[346440744,1734977458399,-2294.66,0.00017802,2]
[346440745,1734977458408,-1316.52,0.00017802,2]
[346440746,1734977458417,-500.0,0.00017802,2]
[346440747,1734977458426,-503.38,0.00017802,2]
[346440748,1734977458435,-567.05,0.00017802,2]
[346440749,1734977458445,-2176.58,0.00017802,2]
[346440750,1734977458454,-500.0,0.00017802,2]
[346440751,1734977458464,-606.69,0.00017802,2]
[346440752,1734977458475,-500.0,0.00017802,2]
[346440753,1734977458485,-4233.89,0.00017802,2]
[346440754,1734977458494,-2729.26,0.00017802,2]
[346440755,1734977458503,-5249.2,0.00017802,2]
[346440756,1734977458513,-5067.96,0.00017802,2]
[346440757,1734977458522,-1752.35,0.00017802,2]
[346440758,1734977458531,-575.93,0.00017802,2]
[346440759,1734977458541,-3195.73,0.00017802,2]
[346440760,1734977458550,-500.0,0.00017802,2]
[346440761,1734977458559,-531.65,0.00017802,2]
[346440762,1734977458568,-500.0,0.00017802,2]
[346440763,1734977458577,-500.0,0.00017802,2]
[346440764,1734977458587,-1763.57,0.00017802,2]
[346440765,1734977458596,-1281.31,0.00017802,2]
[346440766,1734977458605,-4486.02,0.00017802,2]
[346440767,1734977458614,-500.0,0.00017802,2]
[346440768,1734977458623,-537.78,0.00017802,2]
[346440769,1734977458632,-569.05,0.00017802,2]
[346440770,1734977458641,-500.0,0.00017802,2]
[346440771,1734977458650,-848.0,0.00017802,2]
[346440772,1734977458659,-14046.97,0.00017802,2]
[346440773,1734977458668,-1074.87,0.00017802,2]
[346440774,1734977458678,-500.0,0.00017802,2]
[346440775,1734977458687,-500.0,0.00017802,2]
[346440776,1734977458697,-626.0654985,0.00017802,2]
[346440777,1734977458707,-876.59,0.00017802,2]
[346440778,1734977458716,-786.72,0.00017802,2]
[346440779,1734977458726,-500.0,0.00017802,2]
[346440780,1734977458735,-500.0,0.00017802,2]
[346440781,1734977458744,-1238.05,0.00017802,2]
[346440782,1734977458754,-500.0,0.00017802,2]
[346440783,1734977458763,-500.0,0.00017802,2]
[346440784,1734977458772,-500.0,0.00017802,2]
[346440785,1734977458782,-3992.75,0.00017802,2]
[346440786,1734977458792,-1307.48,0.00017802,2]
[346440787,1734977458801,-3075.53,0.00017802,2]
[346440788,1734977458810,-516.72,0.00017802,2]
[346440789,1734977458820,-19454.18,0.00017802,2]
[346440790,1734977458829,-500.0,0.00017802,2]
[346440791,1734977458838,-3415.95,0.00017802,2]
[346440792,1734977458847,-533.62,0.00017802,2]
[346440793,1734977458856,-2974.93,0.00017802,2]
[346440794,1734977458865,-500.0,0.00017802,2]
[346440795,1734977458874,-2746.23,0.00017802,2]
[346440796,1734977458884,-1429.03,0.00017802,2]
[346440797,1734977458893,-4926.68,0.00017802,2]
[346440798,1734977458904,-870.24,0.00017802,2]
[346440799,1734977458913,-500.0,0.00017802,2]
[346440800,1734977458923,-2314.93,0.00017802,2]
[346440801,1734977458932,-500.0,0.00017802,2]
[346440802,1734977458942,-686.85,0.00017802,2]
[346440803,1734977458951,-1561.76,0.00017802,2]
[346440804,1734977458960,-500.0,0.00017802,2]
[346440805,1734977458969,-706.18,0.00017802,2]
[346440806,1734977458979,-794.41,0.00017802,2]
[346440807,1734977458988,-3965.64,0.00017802,2]
[346440808,1734977458997,-500.0,0.00017802,2]
[346440809,1734977459007,-3744.17,0.00017802,2]
[346440810,1734977459016,-500.0,0.00017802,2]
[346440811,1734977459026,-3529.73,0.00017802,2]
[346440812,1734977459035,-675.11,0.00017802,2]
[346440813,1734977459045,-538.34,0.00017802,2]
[346440814,1734977459055,-796.58,0.00017802,2]
[346440815,1734977459064,-3727.03,0.00017802,2]
[346440816,1734977459074,-5046.59,0.00017802,2]
[346440817,1734977459083,-4391.32,0.00017802,2]
[346440818,1734977459092,-903.04,0.00017802,2]
[346440819,1734977459102,-535.74,0.00017802,2]
[346440820,1734977459112,-500.0,0.00017802,2]
[346440821,1734977459122,-500.0,0.00017802,2]
[346440822,1734977459132,-500.0,0.00017802,2]
[346440823,1734977459142,-2235.69,0.00017802,2]
[346440824,1734977459152,-7413.95,0.00017802,2]
[346440825,1734977459162,-8979.53,0.00017802,2]
[346440826,1734977459171,-500.0,0.00017802,2]
[346440827,1734977459181,-2705.58,0.00017802,2]
[346440828,1734977459190,-12065.2,0.00017802,2]
[346440829,1734977459200,-500.0,0.00017802,2]
[346440830,1734977459209,-1746.39,0.00017802,2]
[346440831,1734977459219,-767.72,0.00017802,2]
[346440832,1734977459228,-500.0,0.00017802,2]
[346440833,1734977459237,-500.0,0.00017802,2]
[346440834,1734977459247,-1044.88,0.00017802,2]
[346440835,1734977459257,-1240.44,0.00017802,2]
[346440836,1734977459266,-1076.04,0.00017802,2]
[346440837,1734977459276,-500.0,0.00017802,2]
[346440838,1734977459286,-500.0,0.00017802,2]
[346440839,1734977459295,-1647.96,0.00017802,2]
[346440840,1734977459305,-500.0,0.00017802,2]
[346440841,1734977459315,-6166.83,0.00017802,2]
[346440842,1734977459324,-5101.79,0.00017802,2]
[346440843,1734977459334,-500.0,0.00017802,2]
[346440844,1734977459343,-4805.72,0.00017802,2]
[346440845,1734977459353,-649.1,0.00017802,2]
[346440846,1734977459363,-1067.73,0.00017802,2]
[346440847,1734977459372,-22770.54,0.00017802,2]
[346440848,1734977459382,-500.0,0.00017802,2]
[346440849,1734977459391,-5276.45,0.00017802,2]
[346440850,1734977459405,-338.93377493,0.00017802,2]
[346440851,1734977459414,-2015.49,0.00017802,2]
[346440852,1734977459424,-500.0,0.00017802,2]
[346440853,1734977459434,-500.0,0.00017802,2]
[346440854,1734977459445,-14805.43,0.00017802,2]
[346440855,1734977459454,-500.0,0.00017803,2]
[346440856,1734977459466,-2602.05,0.00017803,2]
[346440857,1734977459476,-547.89039996,0.00017803,2]
[346440858,1734977459486,-1801.52,0.00017803,2]
[346440859,1734977459496,-785.45,0.00017803,2]
[346440860,1734977459507,-1714.52,0.00017803,2]
[346440861,1734977459516,-567.68,0.00017803,2]
[346440862,1734977459526,-862.06,0.00017803,2]
[346440863,1734977459536,-1687.29,0.00017803,2]
[346440864,1734977459547,-2928.48,0.00017803,2]
[346440865,1734977459557,-500.0,0.00017803,2]
[346440866,1734977459566,-1483.36,0.00017803,2]
[346440867,1734977459576,-3327.2,0.00017803,2]
[346440868,1734977459586,-2194.06,0.00017803,2]
[346440869,1734977459596,-541.0,0.00017803,2]
[346440870,1734977459605,-803.6,0.00017803,2]
[346440871,1734977459616,-500.0,0.00017803,2]
[346440872,1734977459626,-500.0,0.00017803,2]
[346440873,1734977459636,-500.0,0.00017803,2]
[346440874,1734977459645,-2147.03,0.00017803,2]
[346440875,1734977459658,-500.0,0.00017803,2]
[346440876,1734977459667,-1135.53,0.00017803,2]
[346440877,1734977459676,-1066.79,0.00017803,2]
[346440878,1734977459686,-249.87720765,0.00017817,2]
[346440879,1734977459696,-500.0,0.00017817,2]
[346440880,1734977459706,-500.0,0.00017817,2]
[346440881,1734977459715,-2051.65,0.00017817,2]
[346440882,1734977459724,-2580.2,0.00017817,2]
[346440883,1734977459734,-1026.78,0.00017817,2]
[346440884,1734977459744,-1736.24,0.00017817,2]
[346440885,1734977459753,-2944.79,0.00017817,2]
[346440886,1734977459763,-1851.07,0.00017817,2]
[346440887,1734977459773,-1284.95,0.00017817,2]
[346440888,1734977459782,-500.0,0.00017821,2]
[346440889,1734977459791,-781.7,0.00017822,2]
[346440890,1734977459801,-500.0,0.00017822,2]
[346440891,1734977459811,-500.0,0.00017822,2]
[346440892,1734977459820,-500.0,0.00017822,2]
[346440893,1734977459829,-1609.11,0.00017822,2]
[346440894,1734977459839,-500.0,0.00017822,2]
[346440895,1734977459849,-500.0,0.00017822,2]
[346440896,1734977459858,-742.9,0.00017822,2]
[346440897,1734977459868,-500.0,0.00017822,2]
[346440898,1734977459877,-1666.57,0.00017822,2]
[346440899,1734977459887,-1017.2,0.00017822,2]
[346440900,1734977459897,-519.98,0.00017822,2]
[346440901,1734977459909,-500.0,0.00017822,2]
[346440902,1734977459919,-161.40310338,0.00017822,2]
[346440903,1734977459929,-500.0,0.00017822,2]
[346440904,1734977459938,-672.47,0.00017822,2]
[346440905,1734977459947,-500.0,0.00017822,2]
[346440906,1734977459957,-740.1,0.00017822,2]
[346440907,1734977459966,-1456.06,0.00017822,2]
[346440908,1734977459976,-696.57,0.00017822,2]
[346440909,1734977459985,-500.0,0.00017822,2]
[346440910,1734977459995,-500.0,0.00017822,2]
[346440911,1734977460005,-500.0,0.00017822,2]
[346440912,1734977460015,-500.0,0.00017822,2]
[346440913,1734977460025,-500.0,0.00017822,2]
[346440914,1734977460035,-500.0,0.00017822,2]
[346440915,1734977460046,-731.04,0.00017822,2]
[346440916,1734977460056,-609.78,0.00017822,2]
[346440917,1734977460066,-1405.37,0.00017822,2]
[346440918,1734977460076,-500.0,0.00017822,2]
[346440919,1734977460086,-500.0,0.00017822,2]
[346440920,1734977460096,-500.0,0.00017822,2]
[346440921,1734977460107,-500.0,0.00017822,2]
[346440922,1734977460116,-500.0,0.00017822,2]
[346440923,1734977460126,-500.0,0.00017822,2]
[346440924,1734977460136,-581.16,0.00017822,2]
[346440925,1734977460146,-998.09,0.00017822,2]
[346440926,1734977460158,-500.0,0.00017822,2]
[346440927,1734977460168,-500.0,0.00017822,2]
[346440928,1734977460178,-500.0,0.00017822,2]
[346440929,1734977460188,-500.0,0.00017822,2]
[346440930,1734977460198,-500.0,0.00017822,2]
[346440931,1734977460208,-500.0,0.00017822,2]
[346440932,1734977460218,-1146.41,0.00017822,2]
[346440933,1734977460228,-500.0,0.00017822,2]
[346440934,1734977460238,-1100.77,0.00017822,2]
[346440935,1734977460248,-500.87,0.00017822,2]
[346440936,1734977460258,-500.0,0.00017822,2]
[346440937,1734977460267,-500.0,0.00017822,2]
[346440938,1734977460277,-418.82597551,0.00017822,2]
[346440939,1734977460286,-2287.4,0.00017822,2]
[346440940,1734977460296,-500.0,0.00017822,2]
[346440941,1734977460306,-766.53,0.00017822,2]
[346440942,1734977460315,-1591.35,0.00017822,2]
[346440943,1734977460325,-500.0,0.00017822,2]
[346440944,1734977460336,-1445.05,0.00017822,2]
[346440945,1734977460346,-671.39,0.00017822,2]
[346440946,1734977460357,-2100.23,0.00017822,2]
[346440947,1734977460367,-1420.08,0.00017822,2]
[346440948,1734977460376,-500.0,0.00017822,2]
[346440949,1734977460386,-500.0,0.00017822,2]
[346440950,1734977460396,-532.35,0.00017822,2]
[346440951,1734977460407,-500.0,0.00017822,2]
[346440952,1734977460416,-669.35,0.00017822,2]
[346440953,1734977460426,-500.0,0.00017822,2]
[346440954,1734977460435,-1662.06,0.00017822,2]
[346440955,1734977460445,-500.0,0.00017822,2]
[346440956,1734977460455,-500.0,0.00017822,2]
[346440957,1734977460467,-441.91445684,0.00017822,2]
[346440958,1734977460477,-846.08,0.00017822,2]
[346440959,1734977460487,-1188.6,0.00017822,2]
[346440960,1734977460497,-500.0,0.00017822,2]
[346440961,1734977460507,-3691.46,0.00017822,2]
[346440962,1734977460516,-1681.56,0.00017822,2]
[346440963,1734977460525,-500.0,0.00017822,2]
[346440964,1734977460535,-2421.19,0.00017822,2]
[346440965,1734977460546,-500.0,0.00017822,2]
[346440966,1734977460556,-3595.2,0.00017822,2]
[346440967,1734977460565,-500.0,0.00017822,2]
[346440968,1734977460575,-500.0,0.00017822,2]
[346440969,1734977460584,-757.01,0.00017822,2]
[346440970,1734977460594,-573.54,0.00017822,2]
[346440971,1734977460603,-1540.8,0.00017822,2]
[346440972,1734977460613,-1459.75,0.00017822,2]
[346440973,1734977460622,-3193.32,0.00017822,2]
[346440974,1734977460631,-500.0,0.00017822,2]
[346440975,1734977460641,-1854.32,0.00017822,2]
[346440976,1734977460650,-500.0,0.00017822,2]
[346440977,1734977460660,-668.27,0.00017822,2]
[346440978,1734977460669,-500.0,0.00017822,2]
[346440979,1734977460678,-1297.49,0.00017822,2]
[346440980,1734977460688,-1968.64,0.00017822,2]
[346440981,1734977460697,-784.15,0.00017822,2]
[346440982,1734977460707,-500.0,0.00017822,2]
[346440983,1734977460716,-809.62,0.00017822,2]
[346440984,1734977460726,-1454.45,0.00017822,2]
[346440985,1734977460735,-500.0,0.00017822,2]
[346440986,1734977460744,-2757.18,0.00017822,2]
[346440987,1734977460753,-1416.3,0.00017822,2]
[346440988,1734977460763,-636.23,0.00017822,2]
[346440989,1734977460772,-500.0,0.00017822,2]
[346440990,1734977461040,-1287.64,0.00017822,2]
[346440991,1734977461057,-286.95529894,0.00017822,2]
[346440992,1734977461066,-1399.95,0.00017822,2]
[346440993,1734977461075,-500.0,0.00017822,2]
[346440994,1734977461085,-150.0,0.00017822,2]
[346440995,1734977461095,-500.0,0.00017822,2]
[346440996,1734977461104,-500.0,0.00017822,2]
[346440997,1734977461114,-1622.77,0.00017822,2]